bitfinex-derivatives/quotes_SOLF0:USTF0_20241215
["timestamp","ask_amount","ask_price","bid_price","bid_amount"]
[1734274623245,2.04,221.07,221.06,13.72337024]
[1734274624346,2.04,221.07,221.06,15.98597024]
[1734274624548,2.04,221.07,221.06,2.2626]
[1734274624745,2.04,221.07,221.06,15.99086859]
[1734274625149,2.04,221.08,221.07,2.2625]
[1734274625350,2.04,221.08,221.07,15.99076859]
[1734274626046,2.04,221.08,221.07,18.0031437]
[1734274626952,2.04,221.1,221.07,15.7406437]
[1734274627153,2.04,221.1,221.08,13.72826859]
[1734274627356,2.04,221.1,221.09,13.72826859]
[1734274627849,2.04,221.1,220.99,6.4364]
[1734274628057,2.04,221.1,221.0,18.99153578]
[1734274628259,2.04,221.1,221.01,18.99153578]
[1734274628451,2.2618,221.14,221.02,18.99153578]
[1734274628756,2.2618,221.14,221.03,18.99153578]
[1734274628757,2.04,221.13,221.03,18.99153578]
[1734274628956,2.04,221.13,221.04,18.99153578]
[1734274629157,2.04,221.13,221.05,18.99153578]
[1734274629456,2.04,221.13,221.09,2.2623]
[1734274629754,2.04,221.13,221.1,5.27753779]
[1734274629958,2.04,221.13,221.11,5.27753779]
[1734274630153,2.04,221.13,221.09,2.2623]
[1734274630347,2.04,221.13,221.1,5.2738267]
[1734274630555,2.04,221.13,221.09,2.2623]
[1734274630748,2.04,221.13,221.1,5.27382152]
[1734274630948,2.04,221.12,221.11,5.27382152]
[1734274632254,2.04,221.12,221.1,2.2621]
[1734274634960,2.04,221.12,221.11,2.2621]
[1734274635160,2.04,221.12,221.11,7.5311913]
[1734274635357,2.04,221.12,221.11,2.2621]
[1734274635959,2.04,221.12,221.11,7.53104577]
[1734274636353,2.04,221.12,221.11,2.2621]
[1734274636760,2.04,221.12,221.11,7.52954837]
[1734274637561,2.04,221.12,221.11,2.2621]
[1734274637861,2.04,221.12,221.11,7.52862901]
[1734274639565,2.04,221.12,221.11,2.2621]
[1734274639864,2.04,221.12,220.99,6.4364]
[1734274640065,2.04,221.12,221.09,2.2622]
[1734274640363,2.04,221.12,221.1,5.26566393]
[1734274640560,2.04,221.12,221.09,2.2622]
[1734274640958,2.04,221.12,221.1,5.26721745]
[1734274641159,2.04,221.12,221.09,2.2622]
[1734274641860,2.04,221.12,221.02,2.2629]
[1734274642061,2.04,221.12,221.03,18.95392791]
[1734274642360,2.04,221.12,221.04,15.70209428]
[1734274642661,2.04,221.12,220.99,6.4364]
[1734274642662,2.2621,221.11,221.07,2.2625]
[1734274642866,2.2621,221.11,221.08,5.26708255]
[1734274643166,2.2621,221.11,221.07,2.2625]
[1734274643463,2.2621,221.11,221.08,5.26840189]
[1734274643755,2.2621,221.11,221.07,2.2625]
[1734274643961,2.2621,221.11,221.08,5.26846686]
[1734274644163,2.2621,221.11,221.07,2.2625]
[1734274644556,2.2621,221.11,221.08,5.26959897]
[1734274644761,2.2621,221.11,221.07,2.2625]
[1734274644962,2.2621,221.11,221.08,5.26960035]
[1734274645154,2.2621,221.11,221.07,2.2625]
[1734274645558,2.2621,221.11,221.08,5.27036002]
[1734274645760,2.2621,221.11,221.07,2.2625]
[1734274645955,2.2621,221.11,221.08,5.27035703]
[1734274646159,2.2621,221.11,221.07,2.2625]
[1734274646355,2.2621,221.11,221.08,5.27243705]
[1734274646566,2.2621,221.11,221.07,2.2625]
[1734274646763,2.2621,221.11,221.08,5.27240614]
[1734274646963,2.2621,221.11,221.07,2.2625]
[1734274647162,51.76,221.17,221.08,5.27298646]
[1734274647360,2.04,221.16,221.06,5.49040177]
[1734274647669,2.04,221.16,221.07,18.97185719]
[1734274647863,2.04,221.16,221.08,15.71767758]
[1734274648165,2.04,221.16,221.06,5.49040177]
[1734274648166,2.04,221.16,221.09,13.70829804]
[1734274648362,2.04,221.16,221.1,13.70829804]
[1734274648663,2.04,221.16,221.06,5.49040177]
[1734274648664,2.04,221.16,221.11,13.70829804]
[1734274648866,2.04,221.15,221.12,5.27242232]
[1734274649065,2.04,221.15,221.13,5.27242232]
[1734274649265,2.04,221.15,221.07,2.9642]
[1734274649465,51.76,221.17,221.08,18.96924491]
[1734274649769,2.04,221.14,221.09,15.71483853]
[1734274649967,2.04,221.14,221.1,13.70568011]
[1734274650164,2.04,221.14,221.11,13.70568011]
[1734274650364,2.04,221.14,221.12,13.70568011]
[1734274650560,2.04,221.14,221.13,7.53321543]
[1734274651964,2.04,221.14,221.13,5.27141543]
[1734274652664,2.04,221.14,221.13,5.27340757]
[1734274653369,2.04,221.14,221.07,2.9642]
[1734274653565,4.3018,221.14,221.09,2.2623]
[1734274653765,4.3018,221.14,221.1,13.71395222]
[1734274653966,2.04,221.14,221.11,5.27459701]
[1734274654165,2.04,221.14,221.12,5.27459701]
[1734274654360,2.04,221.14,221.13,5.27459701]
[1734274655268,2.04,221.14,221.06,5.49040177]
[1734274655568,2.04,221.14,221.13,2.2619]
[1734274655862,2.04,221.15,221.13,5.27503164]
[1734274656063,2.04,221.15,221.14,5.27503164]
[1734274657461,2.04,221.15,221.14,7.53673164]
[1734274658462,8.30251903,221.22,221.14,5.2774366]
[1734274658463,2.905,221.22,221.14,5.2774366]
[1734274658669,2.04,221.21,221.17,2.2614]
[1734274658868,2.04,221.2,221.17,2.2614]
[1734274659063,5.166,221.22,221.17,2.2614]
[1734274659364,2.04,221.21,221.17,2.2614]
[1734274659572,5.166,221.22,221.17,2.2614]
[1734274659874,2.04,221.21,221.17,2.2614]
[1734274660370,4.3011,221.21,221.18,5.27895986]
[1734274660667,4.3011,221.21,221.17,2.2614]
[1734274660972,4.3011,221.21,221.18,5.27925785]
[1734274661169,4.3011,221.21,221.17,2.2614]
[1734274661369,4.3011,221.21,221.18,5.2809182]
[1734274661571,1.5352,221.25,221.09,2.04]
[1734274661765,2.04,221.24,221.1,21.95451108]
[1734274661965,51.74,221.3,221.1,21.95451108]
[1734274661966,2.04,221.23,221.11,15.7394896]
[1734274662164,2.04,221.23,221.22,2.2609]
[1734274662478,2.04,221.29,221.22,13.72174683]
[1734274662769,2.04,221.29,221.23,13.72174683]
[1734274662968,1.4604,221.31,221.24,5.27972068]
[1734274663169,2.04,221.25,221.15,2.04]
[1734274663374,2.04,221.25,221.16,18.97919733]
[1734274663578,2.04,221.25,221.17,15.72329766]
[1734274663772,2.04,221.25,221.21,2.261]
[1734274663966,2.04,221.25,221.22,5.27435697]
[1734274664165,2.04,221.25,221.11,2.04]
[1734274664366,2.04,221.25,221.23,2.2607]
[1734274664575,2.04,221.25,221.24,5.27179951]
[1734274664774,2.04,221.25,221.24,5.271829]
[1734274665275,2.04,221.25,221.19,5.5597179]
[1734274665474,2.04,221.25,221.2,13.70532301]
[1734274665678,2.04,221.25,221.21,5.27127808]
[1734274665874,2.04,221.25,221.22,5.27127808]
[1734274666171,2.04,221.25,221.21,2.261]
[1734274666375,2.04,221.25,221.22,5.2700023]
[1734274666675,2.04,221.25,221.12,2.04]
[1734274666878,2.04,221.25,221.13,18.96486731]
[1734274667073,2.04,221.25,221.14,18.96486731]
[1734274667268,2.04,221.25,221.15,18.96486731]
[1734274667573,2.2607,221.24,221.19,2.2612]
[1734274667876,2.2607,221.24,221.2,5.2697441]
[1734274668076,2.2607,221.24,221.21,5.2697441]
[1734274668375,2.2607,221.24,221.19,2.2612]
[1734274668578,2.2607,221.24,221.2,5.26936696]
[1734274668777,2.04,221.25,221.21,7.53036696]
[1734274668976,2.04,221.25,221.21,2.261]
[1734274669276,2.04,221.25,221.16,5.56427256]
[1734274669579,2.04,221.25,221.19,2.2611]
[1734274669775,2.04,221.25,221.2,5.26852014]
[1734274670072,2.04,221.25,221.21,5.26873888]
[1734274670272,2.04,221.25,221.16,5.56427256]
[1734274670470,2.48718,221.26,221.16,5.56427256]
[1734274670471,2.04,221.24,221.17,13.69795118]
[1734274670668,2.04,221.24,221.23,2.2608]
[1734274670874,0.22668,221.26,221.23,2.2608]
[1734274670875,0.22668,221.26,221.23,5.26707538]
[1734274671075,0.22668,221.26,221.24,5.26707538]
[1734274671289,0.22668,221.26,221.16,7.60427256]
[1734274671473,0.22668,221.26,221.19,2.2612]
[1734274671675,0.22668,221.26,221.2,5.26417442]
[1734274671881,0.22668,221.26,221.21,5.26417442]
[1734274672082,0.22668,221.26,221.16,5.56427256]
[1734274672281,2.04,221.25,221.17,15.69461715]
[1734274672475,2.04,221.25,221.18,13.68833294]
[1734274672681,2.04,221.25,221.19,13.68833294]
[1734274672978,2.04,221.25,221.2,5.26474344]
[1734274673175,2.04,221.25,221.21,5.26474344]
[1734274673374,2.04,221.25,221.22,5.26219531]
[1734274673585,2.04,221.25,221.16,5.56427256]
[1734274673781,2.04,221.25,221.17,18.93678063]
[1734274673988,2.04,221.25,221.16,7.60427256]
[1734274674180,0.22668,221.26,221.25,2.2606]
[1734274676293,2.04,221.31,221.28,2.2603]
[1734274677009,2.04,221.31,221.2,2.04]
[1734274677186,2.04,221.31,221.21,15.65960743]
[1734274677387,2.04,221.31,221.22,13.65782304]
[1734274677682,2.04,221.32,221.23,13.65782304]
[1734274677886,2.04,221.32,221.21,1.5148]
[1734274677887,2.04,221.32,221.24,13.65782304]
[1734274678090,2.04,221.32,221.25,5.25300886]
[1734274678284,2.04,221.32,221.26,5.25300886]
[1734274678592,2.04,221.32,221.21,1.5148]
[1734274678890,2.04,221.32,221.22,13.64917409]
[1734274679090,1.4785,221.31,221.16,5.56427256]
[1734274679394,2.2606,221.26,221.2,2.261]
[1734274679700,2.04,221.25,221.2,2.261]
[1734274680187,2.04,221.25,221.21,2.261]
[1734274682200,4.3006,221.25,221.16,5.56427256]
[1734274682494,2.04,221.25,221.17,13.66076717]
[1734274682794,2.04,221.25,221.12,2.8934]
[1734274682795,2.261,221.22,221.12,2.8934]
[1734274683093,2.04,221.21,221.13,13.66583809]
[1734274683294,2.04,221.21,221.14,13.66583809]
[1734274683595,2.04,221.21,221.15,5.25609157]
[1734274683892,2.04,221.21,221.12,2.8934]
[1734274683893,2.04,221.21,221.16,5.25609157]
[1734274684094,2.04,221.21,221.12,2.8934]
[1734274684292,2.04,221.21,221.13,13.66831963]
[1734274684498,2.04,221.21,221.12,2.8934]
[1734274684499,2.04,221.21,221.17,2.2614]
[1734274684689,2.04,221.21,221.07,2.04]
[1734274684992,2.04,221.21,221.08,18.91759776]
[1734274685195,2.04,221.21,221.15,2.2616]
[1734274685196,4.3011,221.21,221.15,2.2616]
[1734274685391,4.3011,221.21,221.09,18.91759776]
[1734274685392,2.04,221.21,221.06,2.9689]
[1734274685597,2.04,221.21,221.07,18.92586081]
[1734274685795,2.2612,221.19,221.13,2.2618]
[1734274685992,2.2612,221.19,221.14,5.25939125]
[1734274686195,2.2612,221.19,221.13,2.2618]
[1734274687496,2.2612,221.19,221.14,5.2608825]
[1734274687695,2.2612,221.19,221.13,2.2618]
[1734274687896,2.2612,221.19,221.14,7.52142123]
[1734274688100,2.2612,221.19,221.14,2.2617]
[1734274688799,2.04,221.21,221.14,2.2617]
[1734274688997,2.2612,221.2,221.14,2.2617]
[1734274690197,2.2605,221.27,221.22,2.2609]
[1734274690398,2.04,221.26,221.22,2.2609]
[1734274690894,2.04,221.26,221.13,3.24758351]
[1734274691099,2.04,221.26,221.14,18.93130695]
[1734274691400,2.04,221.26,221.15,18.93130695]
[1734274691700,2.04,221.26,221.16,15.68796703]
[1734274691896,2.04,221.26,221.17,13.68245702]
[1734274692097,2.04,221.26,221.18,5.26248347]
[1734274692295,2.04,221.26,221.11,5.30259015]
[1734274692599,2.2609,221.23,221.18,2.2613]
[1734274692800,2.04,221.22,221.18,2.2613]
[1734274693003,2.04,221.22,221.11,5.30259015]
[1734274693194,2.04,221.22,221.19,2.2612]
[1734274693499,2.04,221.22,221.2,5.26578893]
[1734274693803,2.04,221.22,221.11,5.30259015]
[1734274694098,2.04,221.22,221.12,18.94555979]
[1734274694298,2.04,221.22,221.13,18.94555979]
[1734274694491,2.2605,221.27,221.14,18.94555979]
[1734274694696,2.2605,221.27,221.11,5.30259015]
[1734274694697,1.4785,221.31,221.15,18.94655467]
[1734274695000,55.74769564,221.42,221.16,18.93928861]
[1734274695001,2.04,221.3,221.16,18.93928861]
[1734274695205,2.04,221.29,221.25,2.2606]
[1734274695494,2.26,221.32,221.25,2.2606]
[1734274695495,2.04,221.28,221.25,2.2606]
[1734274696200,4.2764,221.36,221.16,3.0036]
[1734274696401,2.26,221.32,221.26,2.2605]
[1734274696700,2.04,221.31,221.26,2.2605]
[1734274697503,2.2598,221.34,221.19,2.04]
[1734274697800,2.04,221.33,221.2,20.42666699]
[1734274698000,2.04,221.33,221.21,18.93486699]
[1734274698201,2.04,221.33,221.22,15.68663586]
[1734274698404,2.04,221.33,221.23,15.68674508]
[1734274698600,4.2764,221.36,221.24,13.68143712]
[1734274698803,4.2764,221.36,221.29,2.2602]
[1734274698804,4.2997,221.35,221.29,2.2602]
[1734274699103,2.04,221.34,221.29,2.2602]
[1734274699597,2.04,221.34,221.3,2.2601]
[1734274699798,2.04,221.34,221.2,1.4918]
[1734274700004,2.04,221.34,221.24,2.2606]
[1734274700205,2.04,221.34,221.25,15.68611221]
[1734274700498,2.04,221.34,221.26,15.68611221]
[1734274700711,2.04,221.34,221.3,2.26]
[1734274701100,2.04,221.33,221.31,2.26]
[1734274701294,4.3913,221.42,221.31,2.26]
[1734274701501,2.04,221.41,221.32,5.26080745]
[1734274701804,2.2592,221.4,221.33,2.2597]
[1734274702406,2.2592,221.39,221.33,2.2597]
[1734274702707,2.04,221.38,221.33,2.2597]
[1734274703303,2.2595,221.36,221.3,2.2601]
[1734274703506,2.2595,221.36,221.31,5.25797747]
[1734274703702,2.2595,221.36,221.32,5.25797747]
[1734274703910,2.2595,221.36,221.23,7.33205358]
[1734274704111,2.2595,221.36,221.24,18.92018894]
[1734274704300,2.2595,221.36,221.25,18.92018894]
[1734274704606,2.04,221.38,221.26,18.92018894]
[1734274704900,4.2994,221.38,221.33,2.2598]
[1734274705308,2.04,221.38,221.34,2.2597]
[1734274705513,2.04,221.38,221.23,7.33205358]
[1734274705706,2.04,221.38,221.24,18.9127139]
[1734274705905,2.04,221.38,221.25,18.91256277]
[1734274706203,2.04,221.38,221.26,18.91256277]
[1734274706400,2.04,221.38,221.27,15.6683011]
[1734274706600,4.2993,221.38,221.31,2.2599]
[1734274706807,2.04,221.38,221.23,7.33205358]
[1734274707009,2.04,221.38,221.24,18.91021929]
[1734274707214,2.04,221.38,221.25,18.91021929]
[1734274707510,2.04,221.38,221.31,2.26]
[1734274708400,2.2596,221.36,221.31,2.26]
[1734274709408,2.04,221.38,221.23,7.33205358]
[1734274709409,2.04,221.38,221.29,2.2602]
[1734274709608,2.04,221.38,221.23,5.29205358]
[1734274709809,2.04,221.38,221.24,15.66195077]
[1734274710012,2.04,221.38,221.23,5.29205358]
[1734274710203,2.04,221.38,221.24,15.66244536]
[1734274710408,2.04,221.38,221.25,13.66055346]
[1734274710609,2.2598,221.34,221.26,13.66055346]
[1734274710803,2.04,221.33,221.27,5.25405902]
[1734274711008,2.04,221.33,221.28,5.25405902]
[1734274711202,2.04,221.33,221.23,5.29205358]
[1734274711403,2.04,221.33,221.24,13.65441452]
[1734274711609,2.04,221.33,221.25,13.65441452]
[1734274711809,2.04,221.33,221.26,13.65441452]
[1734274712010,2.04,221.33,221.27,7.51219789]
[1734274712211,2.04,221.33,221.28,5.25169789]
[1734274712412,2.04,221.33,221.23,5.29205358]
[1734274712608,2.04,221.33,221.25,2.2607]
[1734274713214,2.04,221.33,221.26,5.25312135]
[1734274713415,2.04,221.32,221.25,2.2607]
[1734274713610,2.04,221.31,221.25,2.2607]
[1734274713812,2.04,221.3,221.25,2.2607]
[1734274714009,2.04,221.3,221.26,7.5138614]
[1734274714311,2.04,221.3,221.26,2.2606]
[1734274714513,2.04,221.3,221.23,5.29205358]
[1734274714715,2.2604,221.29,221.24,15.91869963]
[1734274714912,2.2604,221.29,221.25,5.25303832]
[1734274715108,2.2604,221.29,221.24,2.2608]
[1734274715109,2.2604,221.29,221.17,2.04]
[1734274715417,2.04,221.3,221.18,18.90452517]
[1734274715609,2.04,221.3,221.19,18.90452517]
[1734274715917,2.04,221.3,221.2,18.90452517]
[1734274716114,2.04,221.3,221.21,15.66162543]
[1734274716350,2.04,221.3,221.17,2.04]
[1734274716509,2.04,221.3,221.18,11.64886677]
[1734274716714,2.04,221.3,221.19,3.24265856]
[1734274716913,2.04,221.3,221.2,3.24265856]
[1734274717113,2.04,221.3,221.19,7.25481785]
[1734274717307,2.04,221.3,221.2,16.90109291]
[1734274717509,2.2599,221.34,221.28,2.2604]
[1734274717714,2.04,221.34,221.21,2.04]
[1734274717914,2.04,221.33,221.22,18.89605434]
[1734274718114,2.04,221.33,221.23,18.89605434]
[1734274718316,2.04,221.33,221.24,15.65455392]
[1734274718613,2.04,221.33,221.22,1.4314]
[1734274718614,2.04,221.33,221.25,15.65408329]
[1734274718814,2.04,221.33,221.26,13.65353226]
[1734274719015,2.04,221.33,221.27,13.65353226]
[1734274719215,2.04,221.33,221.28,5.25135856]
[1734274719418,2.04,221.33,221.3,2.2602]
[1734274719812,2.04,221.33,221.22,1.4314]
[1734274720118,2.04,221.33,221.29,2.2604]
[1734274721016,2.04,221.33,221.3,2.2602]
[1734274721722,2.04,221.33,221.23,3.24132021]
[1734274721912,2.2597,221.36,221.24,15.65384102]
[1734274722111,2.04,221.35,221.25,17.0899223]
[1734274722426,2.04,221.36,221.26,3.46193079]
[1734274722614,2.04,221.36,221.27,13.6495579]
[1734274722816,2.04,221.36,221.28,13.6495579]
[1734274723018,2.04,221.36,221.29,5.24982996]
[1734274723218,2.04,221.36,221.34,2.2598]
[1734274723612,2.04,221.37,221.26,1.4612]
[1734274723817,2.04,221.37,221.35,2.2597]
[1734274725621,2.04,221.37,221.33,2.2599]
[1734274726024,202.13658706,221.58,221.26,1.4612]
[1734274726025,188.55658706,221.71,221.38,13.59]
[1734274726219,188.55658706,221.71,221.34,2.04]
[1734274726220,5.3751378,221.71,221.4,13.59]
[1734274726414,5.3751378,221.71,221.41,19.74350386]
[1734274726415,2.04,221.7,221.41,19.74350386]
[1734274726613,2.04,221.7,221.42,18.8402023]
[1734274726816,2.04,221.7,221.41,0.90330156]
[1734274726817,2.04,221.7,221.57,2.2574]
[1734274727215,2.2566,221.66,221.57,2.2574]
[1734274727416,2.04,221.65,221.42,13.53677899]
[1734274727617,2.04,221.64,221.43,15.53367219]
[1734274727824,3.5339,221.63,221.44,13.54897737]
[1734274728122,2.2571,221.61,221.51,2.2581]
[1734274729316,2.2571,221.61,221.42,2.04]
[1734274729518,2.2571,221.61,221.52,2.258]
[1734274729919,2.2571,221.61,221.53,5.42731045]
[1734274730113,2.04,221.6,221.53,5.42731045]
[1734274730313,2.04,221.6,221.5,2.2582]
[1734274730918,2.04,221.6,221.42,1.9812147]
[1734274731119,2.04,221.6,221.43,13.52330385]
[1734274731323,2.04,221.6,221.44,13.52330385]
[1734274731625,2.04,221.6,221.48,5.3255174]
[1734274732124,2.16,221.59,221.48,5.3255174]
[1734274733325,4.4174,221.59,221.52,2.258]
[1734274734526,4.4174,221.59,221.5,2.2582]
[1734274734726,2.16,221.59,221.48,5.3255174]
[1734274735024,2.2576,221.56,221.48,5.3255174]
[1734274736130,2.2578,221.54,221.47,2.2585]
[1734274736427,2.16,221.53,221.47,2.2585]
[1734274736629,2.16,221.52,221.47,2.2585]
[1734274736928,2.2577,221.55,221.47,2.2585]
[1734274737724,4.4179,221.54,221.47,2.2585]
[1734274737921,2.16,221.53,221.47,2.2585]
[1734274738532,2.16,221.53,221.47,7.55546888]
[1734274739231,4.418,221.53,221.46,2.2586]
[1734274739629,3.07,221.62,221.45,5.48457777]
[1734274739828,2.16,221.61,221.45,5.48457777]
[1734274741336,2.258,221.53,221.45,7.74327777]
[1734274741528,2.16,221.52,221.45,7.74327777]
[1734274742538,4.418,221.52,221.45,7.74327777]
[1734274743428,2.16,221.52,221.43,2.2589]
[1734274744434,2.2583,221.49,221.43,2.2589]
[1734274744632,2.16,221.52,221.34,2.16]
[1734274744835,2.16,221.52,221.44,7.76847982]
[1734274745833,2.2583,221.5,221.44,7.76847982]
[1734274749238,2.2583,221.49,221.42,2.2589]
[1734274749439,2.16,221.52,221.26,6.20313392]
[1734274749636,2.16,221.52,221.39,2.8797]
[1734274749838,2.2586,221.46,221.41,2.259]
[1734274750033,2.16,221.45,221.39,2.8797]
[1734274750240,2.16,221.44,221.39,2.8797]
[1734274750439,2.16,221.43,221.39,5.1389]
[1734274750638,2.16,221.42,221.39,5.1389]
[1734274751945,2.16,221.42,221.4,2.2592]
[1734274752244,1.4392,221.51,221.39,2.8797]
[1734274752443,2.16,221.5,221.39,2.8797]
[1734274753038,2.16,221.5,221.4,5.42610662]
[1734274753542,2.2584,221.48,221.42,2.259]
[1734274754139,5.50613216,221.56,221.4,5.42610662]
[1734274754343,2.2581,221.51,221.46,2.2586]
[1734274754648,51.66,221.57,221.4,6.83130662]
[1734274754854,51.66,221.57,221.48,2.2584]
[1734274754855,2.258,221.53,221.48,2.2584]
[1734274755547,2.16,221.52,221.48,2.2584]
[1734274755954,51.66,221.57,221.4,6.83130662]
[1734274756250,2.2578,221.55,221.5,2.2582]
[1734274756558,2.16,221.56,221.4,6.83130662]
[1734274757650,2.16,221.56,221.47,2.2584]
[1734274758246,2.16,221.56,221.4,6.83130662]
[1734274758550,2.2579,221.53,221.48,2.2584]
[1734274761460,2.258,221.52,221.48,2.2584]
[1734274761756,2.18,221.51,221.48,2.2584]
[1734274762457,2.18,221.51,221.49,2.2583]
[1734274762968,2.18,221.51,221.41,3.22623255]
[1734274763258,51.66,221.57,221.42,5.2176861]
[1734274763478,2.18,221.56,221.4,6.83130662]
[1734274763758,2.18,221.56,221.41,5.21928216]
[1734274763955,2.18,221.55,221.42,5.21928216]
[1734274764258,2.18,221.55,221.43,5.21928216]
[1734274764558,51.66,221.57,221.44,1.99198475]
[1734274764750,2.18,221.56,221.4,6.83130662]
[1734274764954,2.18,221.56,221.41,5.22283939]
[1734274765155,2.18,221.56,221.42,5.22283939]
[1734274765456,2.2578,221.55,221.49,2.2582]
[1734274766254,51.66,221.57,221.4,6.83130662]
[1734274766458,51.66,221.57,221.41,9.94305069]
[1734274766665,2.18,221.56,221.42,9.94232834]
[1734274766856,2.257,221.62,221.54,2.2578]
[1734274767058,2.18,221.61,221.45,2.18]
[1734274767259,2.18,221.6,221.46,5.22744055]
[1734274767458,2.18,221.59,221.47,5.22744055]
[1734274767763,2.18,221.58,221.48,9.55654055]
[1734274767956,2.18,221.57,221.49,5.22744055]
[1734274768152,2.18,221.57,221.55,2.2577]
[1734274768952,1.4444,221.7,221.48,4.3291]
[1734274769156,1.4444,221.7,221.49,5.23352197]
[1734274769157,2.257,221.63,221.49,5.23352197]
[1734274769359,2.18,221.62,221.5,5.23352197]
[1734274769559,2.18,221.62,221.51,1.99741101]
[1734274769859,4.437,221.62,221.57,2.2575]
[1734274770260,2.18,221.62,221.48,4.3291]
[1734274770464,2.2571,221.61,221.56,2.2576]
[1734274770661,2.18,221.62,221.48,4.3291]
[1734274770857,5.41937123,221.68,221.49,5.24144028]
[1734274771059,5.41937123,221.68,221.5,5.24144028]
[1734274771363,2.257,221.62,221.51,5.24144028]
[1734274771666,2.18,221.61,221.52,5.24144028]
[1734274771963,2.18,221.61,221.6,2.2572]
[1734274772355,2.18,221.61,221.51,2.18]
[1734274772661,2.18,221.61,221.52,5.24049988]
[1734274772857,2.18,221.61,221.53,5.24049988]
[1734274773058,2.18,221.61,221.54,2.0000896]
[1734274773257,2.18,221.61,221.56,5.5178817]
[1734274773863,2.18,221.61,221.56,7.7753817]
[1734274774561,2.18,221.61,221.57,2.2575]
[1734274775765,2.18,221.61,221.48,4.3291]
[1734274776059,2.18,221.61,221.49,5.2381748]
[1734274776258,2.2572,221.6,221.55,2.2577]
[1734274776462,2.2572,221.6,221.48,4.3291]
[1734274776659,2.2572,221.6,221.49,5.23742634]
[1734274776862,2.2572,221.6,221.5,5.23742634]
[1734274777066,2.2572,221.6,221.54,5.29475262]
[1734274778465,2.18,221.61,221.54,5.29475262]
[1734274778466,2.2573,221.59,221.54,5.29475262]
[1734274779569,2.2575,221.58,221.54,5.29475262]
[1734274780263,2.2576,221.57,221.48,4.3291]
[1734274780470,2.18,221.56,221.48,4.3291]
[1734274781169,2.18,221.56,221.52,5.32396209]
[1734274782464,4.4376,221.56,221.51,2.258]
[1734274782861,2.18,221.56,221.48,2.8394]
[1734274783564,2.18,221.56,221.51,5.43992222]
[1734274783765,2.2578,221.55,221.49,2.2583]
[1734274784364,2.18,221.56,221.49,2.2583]
[1734274784692,2.2578,221.54,221.49,2.2583]
[1734274785369,2.18,221.53,221.48,8.35414623]
[1734274785563,2.18,221.52,221.48,7.77314623]
[1734274789071,2.18,221.52,221.48,5.51474623]
[1734274790174,2.18,221.52,221.5,2.2582]
[1734274790774,2.18,221.52,221.48,7.77304623]
[1734274792972,2.28,221.51,221.48,7.77304623]
[1734274793175,2.28,221.51,221.48,5.51474623]
[1734274793472,2.28,221.51,221.49,2.2583]
[1734274794278,4.5381,221.51,221.46,2.2585]
[1734274794476,2.28,221.51,221.46,2.2585]
[1734274794979,4.5381,221.51,221.46,2.2585]
[1734274795379,2.28,221.51,221.46,2.2585]
[1734274795783,4.5381,221.51,221.39,2.9451]
[1734274796083,4.5381,221.51,221.45,2.2587]
[1734274796585,4.5381,221.51,221.45,7.76059131]
[1734274796987,2.2582,221.5,221.45,7.76059131]
[1734274799887,2.28,221.51,221.46,2.2586]
[1734274800614,2.2577,221.56,221.46,2.2586]
[1734274800780,2.2577,221.56,221.45,5.50189131]